bitfinex-derivatives/quotes_SOLF0:USTF0_20260126
["timestamp","ask_amount","ask_price","bid_price","bid_amount"]
[1769391810247,403.20808419,121.69,121.57,34.27961874]
[1769391811542,403.2115268,121.69,121.57,34.27961874]
[1769391812350,122.5962,121.68,121.57,34.27961874]
[1769391812743,280.6209268,121.69,121.58,34.27961874]
[1769391813051,280.6209268,121.69,121.6,34.27961874]
[1769391813052,275.56,121.69,121.6,34.27961874]
[1769391813248,5.0609268,121.73,121.61,34.27961874]
[1769391813249,12.4628268,121.73,121.61,34.27961874]
[1769391813445,154.32835386,121.74,121.62,34.27961874]
[1769391813750,39.19225386,121.74,121.63,34.27961874]
[1769391813950,39.19225386,121.74,121.63,39.34054554]
[1769391814248,39.19225386,121.74,121.64,34.27961874]
[1769391816852,39.19225386,121.74,121.65,39.34054554]
[1769391817042,39.19225386,121.74,121.66,34.27961874]
[1769391821843,39.19225386,121.74,121.67,39.34054554]
[1769391822957,275.62,121.78,121.68,17.13980937]
[1769391823558,7.3977,121.8,121.68,17.13980937]
[1769391823757,122.4724,121.8,121.69,15.36813129]
[1769391824357,7.3986,121.79,121.69,15.36813129]
[1769391824951,7.3992,121.78,121.69,15.36813129]
[1769391826463,5.0609268,121.77,121.67,15.36813129]
[1769391832453,5.0609268,121.75,121.64,15.36813129]
[1769391832851,127.5839268,121.75,121.64,15.36813129]
[1769391833360,12.4619268,121.75,121.64,15.36813129]
[1769391835358,5.0609268,121.76,121.65,15.36813129]
[1769391837065,12.4609268,121.76,121.65,15.36813129]
[1769391838062,7.4009,121.75,121.65,15.36813129]
[1769391839363,7.4016,121.74,121.65,15.36813129]
[1769391839660,12.4625268,121.74,121.65,15.36813129]
[1769391840262,12.4613268,121.76,121.65,15.36813129]
[1769391841068,7.4009,121.75,121.66,15.36813129]
[1769391843864,5.0609268,121.76,121.66,7.4058]
[1769391844069,122.5056,121.77,121.67,15.36813129]
[1769391844569,115.1058,121.77,121.67,15.36813129]
[1769391845269,7.4002,121.76,121.67,15.36813129]
[1769391845472,7.4002,121.76,121.68,15.36813129]
[1769391850371,12.4611268,121.76,121.68,15.36813129]
[1769391851264,7.4009,121.75,121.68,15.36813129]
[1769391857173,5.0609268,121.76,121.68,15.36813129]
[1769391857377,7.3999,121.77,121.68,15.36813129]
[1769391858273,5.0609268,121.76,121.68,15.36813129]
[1769391858474,11.18770455,121.76,121.68,15.36813129]
[1769391858677,5.0609268,121.76,121.68,15.36813129]
[1769391859977,7.4008,121.75,121.68,15.36813129]
[1769391860482,5.0609268,121.76,121.68,15.36813129]
[1769391862885,7.3999,121.77,121.68,15.36813129]
[1769391863082,7.3986,121.79,121.68,15.36813129]
[1769391863382,389.7025268,121.8,121.68,15.36813129]
[1769391863685,6.11900944,121.79,121.68,15.36813129]
[1769391864387,389.7025268,121.8,121.68,15.36813129]
[1769391864586,6.11851898,121.79,121.68,15.36813129]
[1769391865085,7.399,121.78,121.69,15.36813129]
[1769391871685,389.7025268,121.8,121.69,15.36813129]
[1769391871686,7.3978,121.8,121.7,15.36813129]
[1769391872880,7.3978,121.8,121.71,7.4028]
[1769391873083,7.3978,121.8,121.72,15.36813129]
[1769391875095,0.05301416,121.77,121.72,15.36813129]
[1769391877292,2.19985818,121.75,121.7,15.36813129]
[1769391877498,2.19985818,121.74,121.7,15.36813129]
[1769391878899,7.3997,121.77,121.7,15.36813129]
[1769391879101,2.19985818,121.76,121.7,15.36813129]
[1769391879994,7.3997,121.77,121.7,15.36813129]
[1769391880194,2.19985818,121.77,121.7,15.36813129]
[1769391880402,2.19985818,121.77,121.7,17.56798947]
[1769391880602,2.19985818,121.78,121.7,17.56798947]
[1769391880802,2.19985818,121.77,121.7,17.56798947]
[1769391881702,7.3973,121.81,121.71,15.36813129]
[1769391882100,7.3973,121.81,121.73,15.34132592]
[1769391883302,7.3973,121.81,121.76,0.05400364]
[1769391883501,5.05147496,121.8,121.71,15.34132592]
[1769391884904,7.3984,121.79,121.71,15.34132592]
[1769391887616,7.3974,121.81,121.71,15.34132592]
[1769391888911,7.3974,121.81,121.71,22.74382592]
[1769391889112,7.3974,121.81,121.72,15.34132592]
[1769391891623,7.3974,121.81,121.75,0.05247623]
[1769391892521,0.05197241,121.79,121.75,0.05247623]
[1769391892719,0.05197241,121.79,121.75,15.39380215]
[1769391901525,273.5354,121.84,121.75,15.39380215]
[1769391901731,268.33814165,121.84,121.77,15.31533971]
[1769391902029,268.33814165,121.84,121.77,17.51348136]
[1769391902232,266.14,121.84,121.77,17.51348136]
[1769391902832,266.14,121.84,121.79,15.31533971]
[1769391903022,266.14,121.84,121.79,15.37448323]
[1769391903220,2.19814165,121.85,121.79,15.37448323]
[1769391904529,2.19814165,121.86,121.79,15.37448323]
[1769391904719,2.19814165,121.86,121.79,17.57262488]
[1769391904925,2.19814165,121.87,121.79,17.57262488]
[1769391905431,7.3929,121.88,121.81,15.31533971]
[1769391905728,2.19814165,121.88,121.81,17.51348136]
[1769391905927,7.3917,121.9,121.82,17.57676946]
[1769391906127,2.19814165,121.89,121.82,17.57676946]
[1769391906329,2.19814165,121.88,121.82,15.37862781]
[1769391906531,2.19814165,121.88,121.82,15.31533971]
[1769391906830,2.19814165,121.88,121.84,0.06021296]
[1769391907231,2.19814165,121.87,121.84,0.06021296]
[1769391908327,2.19814165,121.85,121.78,17.51348136]
[1769391908729,2.19814165,121.87,121.8,17.51348136]
[1769391908930,2.19814165,121.88,121.82,15.31533971]
[1769391909133,2.19814165,121.89,121.82,17.51348136]
[1769391909532,2.19814165,121.9,121.82,17.51348136]
[1769391909728,2.19814165,121.9,121.84,15.31533971]
[1769391911632,197.2513,121.91,121.84,15.31533971]
[1769391912029,7.3901,121.93,121.84,15.31533971]
[1769391912338,270.10129187,121.95,121.84,15.31533971]
[1769391913038,7.3894,121.94,121.84,15.31533971]
[1769391913833,7.39,121.93,121.84,15.31533971]
[1769391914233,119.99549187,121.93,121.84,15.31533971]
[1769391914646,114.9616,121.92,121.84,15.31533971]
[1769391914834,5.04129187,121.91,121.84,15.31533971]
[1769391916042,12.43249187,121.91,121.84,15.31533971]
[1769391917835,5.04129187,121.91,121.82,15.31533971]
[1769391918038,0.05772644,121.89,121.81,15.31533971]
[1769391918546,385.24049187,121.93,121.82,15.31533971]
[1769391918748,270.28129187,121.93,121.82,15.31533971]
[1769391919452,7.3906,121.92,121.86,0.05556109]
[1769391922051,7.3912,121.91,121.86,0.05556109]
[1769391922642,114.9948,121.89,121.8,15.31533971]
[1769391922846,5.04129187,121.87,121.8,15.31533971]
[1769391923745,12.43489187,121.87,121.8,15.31533971]
[1769391924141,5.04129187,121.93,121.82,15.31533971]
[1769391924953,7.3906,121.92,121.83,15.31533971]
[1769391925148,119.99709187,121.93,121.83,15.31533971]
[1769391925355,114.963,121.92,121.83,15.31533971]
[1769391926954,7.3912,121.91,121.83,15.31533971]
[1769391928658,12.43249187,121.91,121.83,15.31533971]
[1769391929758,5.04129187,121.91,121.83,15.31533971]
[1769391929956,5.04129187,121.87,121.8,15.31533971]
[1769391930358,5.04129187,121.89,121.8,15.31533971]
[1769391931558,2.19710741,121.86,121.8,15.31533971]
[1769391931757,2.19710741,121.85,121.8,15.31533971]
[1769391931966,2.19710741,121.84,121.8,15.31533971]
[1769391932167,2.19710741,121.82,121.78,15.31533971]
[1769391932666,2.19710741,121.81,121.78,15.31533971]
[1769391933054,2.19710741,121.82,121.78,15.31533971]
[1769391934068,2.19710741,121.81,121.78,15.31533971]
[1769391934264,2.19710741,121.81,121.75,15.31533971]
[1769391934466,2.19710741,121.8,121.75,15.31533971]
[1769391934661,2.19710741,121.79,121.75,15.31533971]
[1769391934970,2.19710741,121.8,121.75,15.31533971]
[1769391935261,2.19710741,121.81,121.75,15.31533971]
[1769391936464,2.19710741,121.8,121.75,15.31533971]
[1769391936662,2.19710741,121.79,121.75,15.31533971]
[1769391938068,2.19710741,121.78,121.72,15.31533971]
[1769391939864,2.19710741,121.77,121.74,0.05463674]
[1769391940370,2.19710741,121.77,121.72,15.31533971]
[1769391940571,2.19710741,121.78,121.72,15.31533971]
[1769391940968,2.19710741,121.78,121.73,15.34368385]
[1769391941473,2.19710741,121.77,121.73,15.34368385]
[1769391941671,7.3978,121.8,121.73,15.34368385]
[1769391942073,7.47099553,121.8,121.73,15.34368385]
[1769391944578,0.211304,121.79,121.73,15.34368385]
[1769391946174,5.26251677,121.79,121.73,0.0543314]
[1769391946378,90.111304,121.79,121.73,0.0543314]
[1769391947273,0.211304,121.79,121.73,0.0543314]
[1769391947874,7.3978,121.8,121.73,15.34368385]
[1769391948179,0.34483803,121.81,121.73,15.34368385]
[1769391948380,0.34483803,121.81,121.73,15.28935245]
[1769391948775,0.34483803,121.81,121.76,0.06088573]
[1769391957179,7.74203803,121.81,121.76,0.06088573]
[1769391958684,0.64295058,121.8,121.76,0.06088573]
[1769391959080,0.64295058,121.8,121.73,15.28935245]
[1769391959282,8.04075058,121.8,121.73,15.28935245]
[1769391959875,0.64295058,121.8,121.73,15.28935245]
[1769391960984,0.68703497,121.82,121.73,15.28935245]
[1769391961972,8.08353497,121.82,121.73,15.28935245]
[1769391963585,2.1991141,121.81,121.73,17.48846655]
[1769391963978,2.98724398,121.81,121.73,17.48846655]
[1769391964480,10.38444398,121.81,121.73,17.48846655]
[1769391964678,2.1991141,121.8,121.73,15.28935245]
[1769391966475,2.1991141,121.8,121.73,17.48846655]
[1769391966675,10.38444398,121.81,121.73,17.48846655]
[1769391966888,10.38444398,121.81,121.75,15.45674898]
[1769391966889,2.1991141,121.81,121.75,15.45674898]
[1769391967187,2.1991141,121.82,121.75,15.45674898]
[1769391968485,8.28313824,121.85,121.77,17.65586308]
[1769391968789,10.48225234,121.85,121.79,15.45674898]
[1769391968976,3.08735234,121.85,121.79,15.45674898]
[1769391969586,2.1991141,121.84,121.79,15.45674898]
[1769391969784,2.1991141,121.85,121.79,15.45674898]
[1769391970283,2.1991141,121.86,121.79,15.45674898]
[1769391970683,2.1991141,121.87,121.81,15.45674898]
[1769391970881,2.1991141,121.88,121.81,15.45674898]
[1769391971088,2.1991141,121.88,121.81,17.65586308]
[1769391971389,2.1991141,121.87,121.81,15.45674898]
[1769391971783,200.44561078,121.89,121.81,17.65586308]
[1769391971983,197.32,121.89,121.83,17.65586308]
[1769391972488,199.5191141,121.89,121.83,15.45674898]
[1769391973989,0.05665201,121.87,121.83,17.65586308]
[1769391975185,2.1991141,121.91,121.85,15.45674898]
[1769391976491,2.1991141,121.91,121.87,0.06038258]
[1769391977787,274.92696714,121.93,121.87,15.32140903]
[1769391977788,3.25608124,121.93,121.87,15.32140903]
[1769391977990,2.1991141,121.94,121.87,17.52052313]
[1769391978393,2.1991141,121.94,121.87,17.46014055]
[1769391978590,3.29738429,121.95,121.87,17.46014055]
[1769391978894,3.29738429,121.95,121.89,15.32157562]
[1769391979290,2.1991141,121.96,121.89,17.52068972]
[1769391979494,114.8829,122.01,121.91,15.26102645]
[1769391979693,114.8829,122.01,121.93,17.46014055]
[1769391979694,2.1991141,122.01,121.93,17.46014055]
[1769391979895,2.1991141,122.0,121.93,17.46014055]
[1769391980491,2.1991141,122.02,121.95,15.31873013]
[1769391980693,2.1991141,122.01,121.95,15.31873013]
[1769391980991,2.1991141,122.01,121.95,15.26102645]
[1769391981192,2.1991141,121.99,121.89,15.26102645]
[1769391981393,2.1991141,122.0,121.97,0.06244291]
[1769391981697,1.16685321,122.03,121.97,0.06244291]
[1769391981896,1.16685321,122.03,121.94,15.26102645]
[1769391982100,8.55075321,122.03,121.94,15.26102645]
[1769391982294,0.05565601,122.01,121.94,15.26102645]
[1769391982499,1.23910215,122.01,121.94,15.26102645]
[1769391983596,6.2322373,121.98,121.9,15.26102645]
[1769391983799,1.19984683,121.98,121.9,15.26102645]
[1769391984304,7.3858,122.0,121.9,15.26102645]
[1769391984598,8.60193754,122.0,121.9,15.26102645]
[1769391984794,13.63432801,122.0,121.9,15.26102645]
[1769391988400,1.26401209,121.98,121.9,15.26102645]
[1769391989000,8.66745015,121.97,121.9,15.26102645]
[1769391989701,1.2951073,121.95,121.86,15.26102645]
[1769391990597,7.3883,121.96,121.86,15.26102645]
[1769391991199,7.3869,121.98,121.87,15.26102645]
[1769391991601,7.3869,121.98,121.88,15.26102645]
[1769391992398,7.3869,121.98,121.87,122.4015]
[1769391992399,5.03522755,122.0,121.9,15.26102645]
[1769391992599,1.34008284,122.01,121.91,15.26102645]
[1769391993104,128.62249899,122.02,121.91,15.26102645]
[1769391993306,1.33457144,122.01,121.91,15.26102645]
[1769391995102,1.36386319,121.98,121.91,15.26102645]
[1769391995302,1.36386319,121.97,121.91,15.26102645]
[1769391995800,1.36386319,121.97,121.89,15.70656573]
[1769391996007,1.37830031,121.95,121.85,15.70656573]
[1769391996403,6.42769148,121.94,121.85,15.70656573]
[1769392002004,1.46206663,121.93,121.85,15.70656573]
[1769392003209,6.51065199,121.9,121.81,15.70656573]
[1769392003506,1.47542444,121.92,121.82,15.70656573]
[1769392003709,1.47542444,121.92,121.83,15.70656573]
[1769392005717,8.86612444,121.92,121.83,15.70656573]
[1769392006410,1.51453154,121.91,121.83,15.70656573]
[1769392007216,1.52734071,121.9,121.83,15.70656573]
[1769392008716,12.42652755,121.91,121.83,15.70656573]
[1769392008912,1.55254332,121.9,121.76,93.64]
[1769392009108,84.44,121.95,121.69,174.0]
[1769392009109,5.03522755,121.85,121.73,18.95967645]
[1769392009310,120.09352755,121.82,121.73,18.95967645]
[1769392009819,127.49032755,121.82,121.73,18.95967645]
[1769392010217,12.43202755,121.82,121.73,18.95967645]
[1769392010416,7.3968,121.82,121.73,18.95967645]
[1769392010720,127.51112755,121.8,121.67,18.95967645]
[1769392011021,120.09722755,121.82,121.69,18.95967645]
[1769392011816,12.43182755,121.82,121.71,18.95967645]
[1769392012215,127.48762755,121.82,121.71,18.95967645]
[1769392013209,129.52520487,121.81,121.71,18.95967645]
[1769392013413,122.4641,121.81,121.71,18.95967645]
[1769392015123,7.398,121.8,121.71,18.95967645]
[1769392016317,122.4736,121.8,121.71,18.95967645]
[1769392018921,7.398,121.8,121.71,18.95967645]
[1769392019223,122.4735,121.8,121.71,18.95967645]
[1769392020218,7.398,121.8,121.71,18.95967645]
[1769392020715,122.4944,121.78,121.71,18.95967645]
[1769392020916,127.52962755,121.78,121.71,18.95967645]
[1769392021613,127.52962755,121.78,121.66,18.95967645]
[1769392021812,7.3998,121.77,121.66,18.95967645]
[1769392022117,122.5052,121.77,121.66,18.95967645]
[1769392022523,0.06083759,121.73,121.66,18.95967645]
[1769392022723,0.06083759,121.73,121.66,141.57137645]
[1769392022923,0.06083759,121.73,121.67,18.95967645]
[1769392027222,7.3986,121.79,121.67,18.95967645]
[1769392027420,7.3986,121.79,121.7,18.92925765]
[1769392027918,7.3991,121.78,121.7,18.92925765]
[1769392028321,7.3999,121.77,121.7,18.92925765]
[1769392033127,7.3983,121.79,121.7,18.92925765]
[1769392033832,12.43242755,121.81,121.71,18.92925765]
[1769392034735,7.3972,121.81,121.71,18.92925765]
[1769392034936,115.0696,121.81,121.71,18.92925765]
[1769392035937,7.3987,121.79,121.71,18.92925765]
[1769392038731,115.0937,121.78,121.67,26.33435765]
[1769392038936,5.03522755,121.77,121.68,18.92925765]
[1769392039942,12.43482755,121.77,121.68,18.92925765]
[1769392042245,7.4004,121.76,121.68,18.92925765]
[1769392043742,122.4929,121.78,121.68,18.92925765]
[1769392043936,115.0937,121.78,121.68,18.92925765]
[1769392044342,7.4003,121.76,121.68,18.92925765]
[1769392045354,7.3992,121.78,121.68,18.92925765]
[1769392046943,7.3992,121.78,121.69,18.92925765]
[1769392047553,2.20062215,121.76,121.69,21.1298798]
[1769392049551,2.20062215,121.76,121.69,18.92925765]
[1769392050053,2.20062215,121.75,121.69,18.92925765]
[1769392052651,2.20062215,121.74,121.69,18.92925765]
[1769392053049,7.3993,121.78,121.69,18.92925765]
[1769392053245,2.20062215,121.75,121.69,18.92925765]
[1769392053646,2.20111488,121.75,121.69,18.92925765]
[1769392055151,6.49704513,121.76,121.69,21.13037253]
[1769392055348,2.20111488,121.77,121.69,21.13037253]
[1769392055750,2.20111488,121.77,121.71,18.92925765]
[1769392056650,2.20111488,121.79,121.71,21.13037253]
[1769392056949,2.20111488,121.79,121.73,18.92925765]
[1769392059655,2.20111488,121.77,121.73,18.92925765]
[1769392060060,8.69977309,121.78,121.73,18.92925765]
[1769392060248,2.20111488,121.78,121.73,18.92925765]
[1769392060950,3.09648342,121.81,121.73,18.92925765]
[1769392061247,3.09648342,121.81,121.6,218.8996]
[1769392061248,2.20111488,121.81,121.75,18.92925765]
[1769392061444,264.76111488,121.82,121.75,21.13037253]
[1769392062049,262.56,121.82,121.77,18.90340028]
[1769392062256,264.76111488,121.82,121.77,18.90340028]
[1769392062457,264.76111488,121.82,121.77,18.9653282]
[1769392063155,2.20111488,121.8,121.77,0.06192792]
[1769392063356,2.20111488,121.79,121.75,18.90340028]
[1769392064659,0.05274317,121.78,121.75,18.90340028]
[1769392066460,2.25385805,121.78,121.72,18.90340028]
[1769392066660,2.20111488,121.77,121.72,18.90340028]
[1769392068261,2.25385805,121.78,121.72,18.90340028]
[1769392068564,2.20111488,121.82,121.76,18.8770287]
[1769392069960,2.20111488,121.82,121.78,0.06216046]
[1769392070358,2.20111488,121.81,121.78,0.06216046]
[1769392070561,2.20111488,121.81,121.76,18.8770287]
[1769392070757,2.26021971,121.81,121.76,18.8770287]
[1769392072252,0.05910483,121.81,121.76,18.8770287]
[1769392074861,2.20111488,121.8,121.76,18.8770287]
[1769392076664,2.20111488,121.79,121.74,18.8770287]
[1769392076855,2.20111488,121.77,121.74,18.8770287]
[1769392077054,2.20111488,121.77,121.71,18.8770287]
[1769392077256,2.20111488,121.76,121.71,18.8770287]
[1769392077663,0.05244938,121.75,121.71,18.8770287]
[1769392080468,2.20111488,121.74,121.71,18.8770287]
[1769392080776,2.20111488,121.74,121.68,18.8770287]
[1769392081678,0.05180489,121.72,121.68,18.8770287]
[1769392082382,2.20111488,121.74,121.68,18.8770287]
[1769392082682,2.20111488,121.75,121.68,21.07814358]
[1769392083183,2.20111488,121.76,121.68,21.07814358]
[1769392084282,2.20111488,121.76,121.7,18.85112625]
[1769392084585,2.20111488,121.78,121.72,18.85112625]
[1769392086183,2.20111488,121.79,121.72,21.05224113]
[1769392086689,159.68111488,121.81,121.74,21.05224113]
[1769392088080,157.48,121.81,121.75,2.20111488]
[1769392088390,157.48,121.81,121.76,18.85112625]
[1769392088683,9.59771488,121.82,121.76,18.85112625]
[1769392089190,2.20111488,121.82,121.76,18.85112625]
[1769392089577,2.20111488,121.83,121.76,21.05224113]
[1769392089985,7.3942,121.86,121.78,18.85112625]
[1769392090182,2.20111488,121.84,121.78,21.05224113]
[1769392091285,2.20111488,121.86,121.8,18.85112625]
[1769392091687,285.3577,121.88,121.8,18.85112625]
[1769392092685,7.3937,121.87,121.8,18.85112625]
[1769392093191,114.9821,121.9,121.8,18.85112625]
[1769392093986,7.3924,121.89,121.8,18.85112625]
[1769392094191,5.04470841,121.87,121.8,18.85112625]
[1769392094389,120.03570841,121.89,121.8,18.85112625]
[1769392094986,5.04470841,121.89,121.8,18.85112625]
[1769392095186,120.02090841,121.91,121.8,18.85112625]
[1769392095382,232.94090841,121.91,121.8,18.85112625]
[1769392095995,112.92,121.91,121.81,18.85112625]
[1769392098389,112.92,121.91,121.82,18.85112625]
[1769392098590,12.43400841,121.94,121.82,18.85112625]
[1769392098895,119.98740841,121.94,121.82,26.24702625]
[1769392099097,119.98740841,121.94,121.83,18.85112625]
[1769392100098,7.39,121.93,121.83,18.85112625]
[1769392100493,7.3906,121.92,121.83,18.85112625]
[1769392100890,12.43530841,121.92,121.83,18.85112625]
[1769392101397,120.00650841,121.92,121.78,115.0883]
[1769392101593,5.04470841,121.89,121.81,18.85112625]
[1769392101998,120.01630841,121.91,121.81,18.85112625]
[1769392102497,7.3918,121.9,121.81,18.85112625]
[1769392102698,5.04470841,121.93,121.82,18.85112625]
[1769392103493,5.04470841,121.89,121.8,18.85112625]
[1769392103694,5.04470841,121.87,121.8,18.85112625]
[1769392105003,5.04470841,121.85,121.74,18.85112625]
[1769392105202,5.04470841,121.85,121.75,18.85112625]
[1769392105698,5.04470841,121.85,121.76,18.85112625]
[1769392106299,12.43970841,121.85,121.76,18.85112625]
[1769392106505,5.04470841,121.83,121.76,18.85112625]
[1769392107497,12.44080841,121.83,121.76,18.85112625]
[1769392108101,12.43960841,121.85,121.76,18.85112625]
[1769392108907,7.3956,121.84,121.76,18.85112625]
[1769392111099,1.42816104,121.94,121.76,18.85112625]
[1769392111304,299.0,122.03,121.7,5.04470841]
[1769392111305,114.934,121.95,121.83,18.85112625]
[1769392111504,114.9428,121.94,121.83,18.85112625]
[1769392111704,119.99680841,121.93,121.83,18.85112625]
[1769392112300,12.43590841,121.91,121.83,18.85112625]
[1769392113100,7.3912,121.91,121.83,18.85112625]
[1769392113798,142.59134518,121.93,121.83,18.85112625]
[1769392114607,137.55,121.93,121.83,18.85112625]
[1769392114907,130.16,121.93,121.85,18.85112625]
[1769392115905,137.5501,121.93,121.85,18.85112625]
[1769392119314,7.3906,121.92,121.85,18.85112625]
[1769392120208,135.20134518,121.93,121.85,18.85112625]
[1769392120414,130.16,121.93,121.85,18.85112625]
[1769392122113,137.55,121.93,121.85,18.85112625]
[1769392122913,7.3908,121.92,121.85,18.85112625]
[1769392124619,245.1147,121.93,121.8,115.0686]
[1769392124620,7.3913,121.91,121.81,18.85112625]
[1769392125117,114.972,121.91,121.81,18.85112625]
[1769392125915,7.3924,121.89,121.81,18.85112625]
[1769392127521,7.393,121.88,121.81,18.85112625]
[1769392128118,127.41734518,121.9,121.83,18.90544931]
[1769392128425,7.3919,121.9,121.83,18.90544931]
[1769392129424,0.05315808,121.88,121.83,18.90544931]
[1769392131627,0.05315808,121.88,121.83,0.05432306]
[1769392132925,7.44615808,121.88,121.83,0.05432306]
[1769392137325,120.05394518,121.87,121.77,18.85112625]
[1769392137532,2.19848215,121.82,121.77,18.85112625]
[1769392138135,2.19848215,121.83,121.77,18.85112625]
[1769392138926,2.19848215,121.82,121.77,18.85112625]
[1769392139935,7.3954,121.84,121.77,18.85112625]
[1769392140238,2.19848215,121.83,121.78,18.87743458]
[1769392141139,2.19848215,121.82,121.78,18.87743458]
[1769392141632,7.3954,121.84,121.78,18.87743458]
[1769392141833,2.19848215,121.82,121.78,18.87743458]
[1769392142639,7.3954,121.84,121.78,18.87743458]
[1769392142640,2.19848215,121.83,121.78,18.87743458]
[1769392143336,2.19848215,121.82,121.78,18.87743458]
[1769392143844,7.3954,121.84,121.78,18.87743458]
[1769392144032,2.19848215,121.83,121.78,18.87743458]
[1769392144847,2.19848215,121.84,121.78,18.87743458]
[1769392145027,2.19848215,121.85,121.78,7.45363277]
[1769392145231,7.3931,121.88,121.79,21.02078396]
[1769392145232,2.19848215,121.87,121.79,21.02078396]
[1769392145834,2.19848215,121.87,121.82,18.8763879]
[1769392148139,2.19848215,121.83,121.78,18.84934486]
[1769392148440,2.19848215,121.82,121.78,18.84934486]
[1769392149242,115.0108,121.87,121.78,18.84934486]
[1769392149541,2.19848215,121.83,121.78,18.84934486]
[1769392150140,2.19848215,121.83,121.79,18.88063222]
[1769392150642,81.98,121.9,121.79,18.88063222]
[1769392150643,2.19848215,121.86,121.79,21.07911437]
[1769392151231,2.19848215,121.86,121.79,21.02079983]
[1769392151637,12.43795075,121.87,121.81,0.06120843]
[1769392152231,12.43795075,121.87,121.8,18.82231768]
[1769392152432,7.3942,121.86,121.8,18.82231768]
[1769392152637,0.05404649,121.85,121.8,18.82231768]
[1769392156045,5.09839724,121.85,121.77,18.82231768]
[1769392156741,5.04435075,121.85,121.77,18.82231768]
[1769392157046,0.05691351,121.82,121.77,18.82231768]
[1769392159451,7.3942,121.86,121.77,18.82231768]
[1769392159757,7.3942,121.86,121.79,18.79386092]
[1769392160951,7.3942,121.86,121.81,0.05234501]
[1769392161445,115.0018,121.88,121.81,18.84620593]
[1769392161446,7.3932,121.88,121.81,18.84620593]
[1769392162343,7.3936,121.87,121.81,18.84620593]
[1769392164649,7.3942,121.86,121.81,18.84620593]
[1769392165049,5.04435075,121.85,121.78,18.79386092]
[1769392165352,115.0399,121.84,121.74,18.79386092]
[1769392165552,0.06083202,121.85,121.74,18.79386092]
[1769392165942,117.20435075,121.87,121.74,18.79386092]
[1769392166742,124.59815075,121.87,121.77,18.79386092]
[1769392167346,124.59815075,121.87,121.81,0.05546605]
[1769392167555,119.5538,121.87,121.81,18.81924521]
[1769392169358,112.16,121.87,121.81,18.81924521]
[1769392171559,114.3569083,121.87,121.81,18.81924521]
[1769392172076,121.7505083,121.87,121.81,18.81924521]
[1769392172360,2.1969083,121.86,121.81,18.81924521]
[1769392173251,2.1969083,121.85,121.81,18.81924521]
[1769392174456,7.3942,121.86,121.81,18.81924521]
[1769392174650,9.5911083,121.86,121.81,18.81924521]
[1769392175660,9.59133345,121.86,121.81,18.81924521]
[1769392176461,7.3942,121.86,121.81,18.81924521]
[1769392178759,114.35713345,121.87,121.81,18.81924521]
[1769392179970,2.19713345,121.87,121.81,18.81924521]
[1769392180667,2.19713345,121.86,121.81,18.81924521]
[1769392181168,2.19713345,121.87,121.81,18.81924521]
[1769392186673,9.58913345,121.9,121.83,18.76377916]
[1769392186873,9.58913345,121.9,121.83,20.96091261]
[1769392187565,9.58913345,121.9,121.85,0.05217908]
[1769392188274,9.58953345,121.89,121.85,0.05217908]
[1769392188574,2.19713345,121.88,121.85,0.05217908]
[1769392188776,9.58953345,121.89,121.84,18.76377916]
[1769392189175,9.58953345,121.89,121.85,0.05252943]
[1769392189874,2.19713345,121.88,121.85,0.05252943]
[1769392190179,2.19713345,121.86,121.78,2.19713345]
[1769392190375,7.3929,121.88,121.78,2.19713345]
[1769392190579,2.19713345,121.87,121.79,2.19713345]
[1769392192177,2.19713345,121.87,121.8,17.36484841]
[1769392192477,2.19713345,121.87,121.8,19.56198186]
[1769392193667,7.3929,121.88,121.78,7.3986]
[1769392193668,9.59003345,121.88,121.82,17.36484841]
[1769392193869,7.3929,121.88,121.82,17.36484841]
[1769392194272,9.59003345,121.88,121.82,17.36484841]
[1769392197674,2.19713345,121.88,121.82,17.36484841]
[1769392197870,2.19713345,121.89,121.82,19.56198186]
[1769392198881,2.19713345,121.89,121.82,17.36484841]
[1769392199677,2.19713345,121.89,121.82,19.56198186]
[1769392200679,7.3919,121.9,121.82,19.56198186]
[1769392200871,2.19713345,121.89,121.82,19.56198186]
[1769392201277,2.19713345,121.88,121.82,17.36484841]
[1769392203469,7.3923,121.89,121.82,17.36484841]
[1769392203670,2.19713345,121.88,121.82,17.36484841]
[1769392204376,2.19713345,121.86,121.82,17.36484841]
[1769392205183,0.06209003,121.85,121.82,17.36484841]
[1769392205384,2.19713345,121.86,121.82,17.36484841]
[1769392206784,2.19713345,121.84,121.8,17.33380339]
[1769392208776,2.19713345,121.83,121.78,17.33380339]
[1769392209888,14.7817,121.92,121.78,17.33380339]
[1769392209889,2.19713345,121.84,121.78,17.33380339]
[1769392210493,2.19713345,121.85,121.78,17.33380339]
[1769392211086,2.19713345,121.85,121.78,19.53093684]
[1769392211589,2.19713345,121.85,121.78,17.33380339]
[1769392211791,2.19713345,121.84,121.78,17.33380339]
[1769392212392,7.3948,121.85,121.78,17.33380339]
[1769392212595,2.19713345,121.84,121.78,17.33380339]